{"text_format":"1","workbook":"xlsx","n_sheets":4,"sheets":["0","НПЗ","00","Лист1"],"not_rendered":{"charts":0,"images":8,"macros":1,"external_links":0,"defined_names":0,"comments":1,"pivot_tables":0},"unopened":[],"bounds":{"document_bytes":16777216,"sheet_cells":100000,"rows_first":2000,"rows_last":500,"rows_between":2000,"halvings":0,"cell_chars":16384,"cell_head_chars":4096},"cells_cut":0,"cells_raw":0,"read":"whole","date_system":"1900"}

{"sheet":"0","index":0,"n_rows":0,"n_cols":0,"rows_kept":0,"cut":false,"hidden":true,"merged":[]}

{"sheet":"НПЗ","index":1,"n_rows":778,"n_cols":50,"rows_kept":778,"cut":false,"hidden":false,"merged":[[14,7,14,8],[15,7,15,8],[16,7,16,8],[17,7,17,8],[639,13,639,28],[640,23,642,25],[640,26,640,27],[640,28,643,28],[641,13,641,18],[641,26,642,27],[642,13,642,14],[642,15,642,16],[642,17,642,18],[640,13,640,18],[640,19,643,19],[640,20,643,20],[640,21,642,22],[687,38,687,49],[688,38,689,38],[688,39,689,39],[688,40,689,40],[688,41,689,41],[688,42,689,42],[688,43,689,43],[688,44,689,44],[688,45,689,45],[688,46,688,47],[688,48,688,49],[736,38,736,49],[737,38,738,38],[737,39,738,39],[737,40,738,40],[737,41,738,41],[737,42,738,42],[737,43,738,43],[737,44,738,44],[737,45,738,45],[737,46,738,46],[737,47,738,47],[737,48,737,49]]}
[]
[]
[]
[]
[]
[]
[]
[]
[]
[]
[]
[]
[]
[]
[]
[]
[]
[]
[]
[]
[]
[]
[]
[]
[]
[]
[]
[]
[]
[]
[]
[]
[]
[]
[]
[]
[]
[]
[]
[]
[]
[]
[]
[]
[]
[]
[]
[]
[]
[]
[]
[]
[]
[]
[]
[]
[]
[]
[]
[]
[]
[]
[]
[]
[]
[]
[]
[]
[]
[]
[]
[]
[]
[]
[]
[]
[]
[]
[]
[]
[]
[]
[]
[]
[]
[]
[]
[]
[]
[]
[]
[]
[]
[]
[]
[]
[]
[]
[]
[]
[]
[]
[]
[]
[]
[]
[]
[]
[]
[]
[]
[]
[]
[]
[]
[]
[]
[]
[]
[]
[]
[]
[]
[]
[]
[]
[]
[]
[]
[]
[]
[]
[]
[]
[]
[]
[]
[]
[]
[]
[]
[]
[]
[]
[]
[]
[]
[]
[]
[]
[]
[]
[]
[]
[]
[]
[]
[]
[]
[]
[]
[]
[]
[]
[]
[]
[]
[]
[]
[]
[]
[]
[]
[]
[]
[]
[]
[]
[]
[]
[]
[]
[]
[]
[]
[]
[]
[]
[]
[]
[]
[]
[]
[]
[]
[]
[]
[]
[]
[]
[]
[]
[]
[]
[]
[]
[]
[]
[]
[]
[]
[]
[]
[]
[]
[]
[]
[]
[]
[]
[]
[]
[]
[]
[]
[]
[]
[]
[]
[]
[]
[]
[]
[]
[]
[]
[]
[]
[]
[]
[]
[]
[]
[]
[]
[]
[]
[]
[]
[]
[]
[]
[]
[]
[]
[]
[]
[]
[]
[]
[]
[]
[]
[]
[]
[]
[]
[]
[]
[]
[]
[]
[]
[]
[]
[]
[]
[]
[]
[]
[]
[]
[]
[]
[]
[]
[]
[]
[]
[]
[]
[]
[]
[]
[]
[]
[]
[]
[]
[null,"Показатели/Годы",0,1,2,3,4,5,6,7,8,9,10]
[null,"Выход продукции",null,null,null,{"$f":"$C$371","v":6000000},6000000,6000000,6000000,6000000,6000000,6000000,6000000]
[null,"Сжиженный газ",null,null,null,{"$f":"F$301*$C373","v":225000},225000,225000,225000,225000,225000,225000,225000]
[null,"Бензин А-76 неэтилированный",null,null,null,1000000,1000000,1000000,1000000,1000000,1000000,1000000,1000000]
[null,"Бензин АИ-93 неэтилированный",null,null,null,1000000,1000000,1000000,1000000,1000000,1000000,1000000,1000000]
[null,"Топливо дизельное",null,null,null,2000000,2000000,2000000,2000000,2000000,2000000,2000000,2000000]
[null,"Мазут",null,null,null,1000000,1000000,1000000,1000000,1000000,1000000,1000000,1000000]
[null,"Битум дорожный",null,null,null,560000,560000,560000,560000,560000,560000,560000,560000]
[null,"Сера",null,null,null,50000,50000,50000,50000,50000,50000,50000,50000]
[null,"Цены",null,null,null,{"$f":"$F308*C380","v":0}]
[null,"Сжиженный газ",null,null,null,{"$f":"$C$381","v":65},65,65,65,65,65,65,65]
[null,"Бензин А-76 неэтилированный",null,null,null,{"$f":"$C$382","v":449},449,449,449,449,449,449,449]
[null,"Бензин АИ-93 неэтилированный",null,null,null,{"$f":"$C$383","v":478},478,478,478,478,478,478,478]
[null,"Топливо дизельное",null,null,null,{"$f":"$C$384","v":461},461,461,461,461,461,461,461]
[null,"Мазут",null,null,null,{"$f":"$C$385","v":231},231,231,231,231,231,231,231]
[null,"Битум дорожный",null,null,null,{"$f":"$C$386","v":180},180,180,180,180,180,180,180]
[null,"Сера",null,null,null,{"$f":"$C$387","v":95},95,95,95,95,95,95,95]
[]
[null,"Выручка",null,null,null,{"$f":"SUM(F319:F325)","v":2200175000},{"$f":"SUM(G319:G325)","v":2200175000},2200175000,2200175000,2200175000,2200175000,2200175000,2200175000]
[null,"Сжиженный газ",null,null,null,{"$f":"F302*F310","v":14625000},{"$f":"G302*G310","v":14625000},14625000,14625000,14625000,14625000,14625000,14625000]
[null,"Бензин А-76 неэтилированный",null,null,null,{"$f":"F303*F311","v":449000000},449000000,449000000,449000000,449000000,449000000,449000000,449000000]
[null,"Бензин АИ-93 неэтилированный",null,null,null,478000000,478000000,478000000,478000000,478000000,478000000,478000000,478000000]
[null,"Топливо дизельное",null,null,null,922000000,922000000,922000000,922000000,922000000,922000000,922000000,922000000]
[null,"Мазут",null,null,null,231000000,231000000,231000000,231000000,231000000,231000000,231000000,231000000]
[null,"Битум дорожный",null,null,null,100800000,100800000,100800000,100800000,100800000,100800000,100800000,100800000]
[null,"Сера",null,null,null,4750000,4750000,4750000,4750000,4750000,4750000,4750000,4750000]
[null,"Себестоимость",null,null,{"$f":"SUM(E327:E336)","v":0},810089000,810089000,810089000,810089000,810089000,810089000,810089000,810089000]
[null,"Сырье и материалы",null,null,null,{"$f":"F$301*$C389","v":743118000},743118000,743118000,743118000,743118000,743118000,743118000,743118000]
[null,"Энергия",null,null,null,0,0,0,0,0,0,0,0]
[null,"Зарплата производственного персонала",null,null,null,484999.99999999994,484999.99999999994,484999.99999999994,484999.99999999994,484999.99999999994,484999.99999999994,484999.99999999994,484999.99999999994]
[null,"Обслуживание и ремонт оборудования",null,null,null,20000000,20000000,20000000,20000000,20000000,20000000,20000000,20000000]
[null,"Административные расходы",null,null,null,559000,559000,559000,559000,559000,559000,559000,559000]
[null,"Накладные",null,null,null,1229000,1229000,1229000,1229000,1229000,1229000,1229000,1229000]
[null,"Прочие",null,null,null,0,0,0,0,0,0,0,0]
[null,"Транспортный налог",null,null,null,40000,40000,40000,40000,40000,40000,40000,40000]
[null,"Налог на имущество",null,null,null,5600000,5600000,5600000,5600000,5600000,5600000,5600000,5600000]
[null,"Амортизация",null,null,null,39058000,39058000,39058000,39058000,39058000,39058000,39058000,39058000]
[null,"Балансовая прибыль",null,null,null,{"$f":"F318-F326","v":1390086000},{"$f":"G318-G326","v":1390086000},1390086000,1390086000,1390086000,1390086000,1390086000,1390086000]
[null,"Налог на прибыль",null,null,null,{"$f":"F337*$C$401","v":389224080.00000006},389224080.00000006,389224080.00000006,389224080.00000006,389224080.00000006,389224080.00000006,389224080.00000006,389224080.00000006]
[null,"Чистая прибыль",null,null,null,{"$f":"F337-F338","v":1000861920},{"$f":"G337-G338","v":1000861920},{"$f":"H337-H338","v":1000861920},1000861920,1000861920,1000861920,1000861920,1000861920]
[null,"Капзатраты",null,{"$f":"0.4*$C$371*$C$400","v":349977600},{"$f":"0.6*$C$371*$C$400","v":524966400.00000006}]
[null,"Поток наличности",null,{"$f":"D339+D336-D340","v":-349977600},-524966400.00000006,1039919920,1039919920,1039919920,1039919920,1039919920,1039919920,1039919920,1039919920]
[null,"коэффициент дисконтирования",null,null,{"$f":"1/(1+$C$403)^(E300-$E$300)","v":1},0.86956521739130443,0.7561436672967865,0.65751623243198831,0.57175324559303342,0.49717673529828987,0.43232759591155645,0.37593703992309269,0.32690177384616753]
[null,"Дисконтированный поток наличности",null,{"$f":"D341","v":-349977600},{"$f":"E341","v":-524966400.00000006},{"$f":"F341*F342","v":904278191.30434787},786328862.00378084,683764227.82937467,594577589.41684771,517023990.79725879,449586078.9541381,390944416.48185933,339951666.50596464]
[null,"Дисконтированный поток наличности",0,{"$f":"D343","v":-349977600},{"$f":"D344+E343","v":-874944000},29334191.304347873,815663053.30812871,1499427281.1375034,2094004870.5543511,2611028861.3516097,3060614940.305748,3451559356.7876072,3791511023.2935719]
[null,"NPV",null,{"$f":"MAX(D344:M344)","v":3791511023.2935719}]
[null,"IRR (%)",null,{"$f":"IRR(D341:M341)","v":0.87471526462621629}]
[null,"DPP (лет)",null,{"$f":"COUNTIF(D344:I344,\"<=0\")+ABS(OFFSET(D344,0,COUNTIF(D344:I344,\"<=0\")-1))/(ABS(OFFSET(D344,0,COUNTIF(D344:I344,\"<=0\")-1))+OFFSET(D344,0,COUNTIF(D344:I344,\"<=0\")))","v":2.967560656016667}]
[null,"PI",null,{"$f":"ROUND(1+D345/SUM(D340:I340),1)","v":5.3}]
[]
[]
[]
[null,"Периоды",0,{"$f":"C352+1","v":1},2,3,4,5,6]
[null,"Поступление кредита",0,{"$f":"IF(SUM(C353:$C$353)<=$C$363-1,$C$363/$C$365,0)","v":437472000},{"$f":"IF(SUM($C353:D$353)<=$C$363-1,$C$363/$C$365,0)","v":437472000},{"$f":"IF(SUM($C353:E$353)<=$C$363-1,$C$363/$C$365,0)","v":0},{"$f":"IF(SUM($C353:F$353)<=$C$363-1,$C$363/$C$365,0)","v":0},{"$f":"IF(SUM($C353:G$353)<=$C$363-1,$C$363/$C$365,0)","v":0},{"$f":"IF(SUM($C353:H$353)<=$C$363-1,$C$363/$C$365,0)","v":0}]
[null,"Гашение основного долга (тело кредита)",0,{"$f":"D357","v":218736000},218736000,218736000,218736000,0,0]
[null,"Гашение процентов по кредиту",0,1224921.6000000001,918691.2,612460.80000000005,306230.40000000002,0,0]
[null,"Сумма платежа (тело + проценты)",0,{"$f":"D357+D358","v":219960921.59999999},219654691.19999999,219348460.80000001,219042230.40000001,0,0]
[null,"Гашение основного долга (тело кредита)",0,{"$f":"$C$363/$C$366","v":218736000},{"$f":"IF(D362>0,$C$363/$C$366,0)","v":218736000},{"$f":"IF(E362>0,$C$363/$C$366,0)","v":218736000},{"$f":"IF(F362>0,$C$363/$C$366,0)","v":218736000},{"$f":"IF(G362>0,$C$363/$C$366,0)","v":0},{"$f":"IF(H362>0,$C$363/$C$366,0)","v":0}]
[null,"Проценты ",0,{"$f":"IF(D357=0,0,C363*$C$364)","v":1224921.6000000001},{"$f":"IF(E357=0,0,D362*$C$364)","v":918691.2},{"$f":"IF(F357=0,0,E362*$C$364)","v":612460.80000000005},{"$f":"IF(G357=0,0,F362*$C$364)","v":306230.40000000002},{"$f":"IF(H357=0,0,G362*$C$364)","v":0},{"$f":"IF(I357=0,0,H362*$C$364)","v":0}]
[null,"Гашение долга S       нарастающим итогом",0,{"$f":"IF(D357=0,0,D357+C359)","v":218736000},437472000,656208000,874944000,0,0]
[null,"Проценты Sp             нарастающим итогом",0,{"$f":"IF(D357=0,0,D358+C360)","v":1224921.6000000001},2143612.7999999998,2756073.5999999996,3062303.9999999995,0,0]
[null,"Сумма платежа St     нарастающим итогом",0,{"$f":"D359+D360","v":219960921.59999999},439615612.80000001,658964073.60000002,878006304,0,0]
[null,"Остаток долга R        нарастающим итогом",0,{"$f":"IF(C363>D357,C363-D357,0)","v":656208000},{"$f":"IF(D362>E357,D362-E357,0)","v":437472000},{"$f":"IF(E362>F357,E362-F357,0)","v":218736000},{"$f":"IF(F362>G357,F362-G357,0)","v":0},{"$f":"IF(G362>H357,G362-H357,0)","v":0},{"$f":"IF(H362>I357,H362-I357,0)","v":0}]
[null,"Сумма кредита",{"$f":"SUM(НПЗ!D340:E340)","v":874944000}]
[null,"Ставка кредита",1.4E-3]
[null,"Период поступления кредита",2]
[null,"Период выплаты кредита",4]
[]
[]
[]
[null,"Исходные  данные"]
[null,"Мощность завода",6000000]
[null,"Продукция"]
[null,"Сжиженный газ",3.7499999999999999E-2]
[null,"Бензин А-76 неэтилированный",0.16666666666666666]
[null,"Бензин АИ-93 неэтилированный",0.16666666666666666]
[null,"Топливо дизельное",0.33333333333333331]
[null,"Мазут",0.16666666666666666]
[null,"Битум дорожный",9.3333333333333338E-2]
[null,"Сера",8.3333333333333332E-3]
[null,"Цены    $/т"]
[null,"Сжиженный газ",65]
[null,"Бензин А-76 неэтилированный",449]
[null,"Бензин АИ-93 неэтилированный",478]
[null,"Топливо дизельное",461]
[null,"Мазут",231]
[null,"Битум дорожный",180]
[null,"Сера",95]
[null,"Себестоимость    $/т",{"$f":"SUM(C389:C398)","v":135.01483333333331}]
[null,"Сырье и материалы",123.85299999999999]
[null,"Энергия",0]
[null,"Зарплата производственного перс.",8.0833333333333326E-2]
[null,"Обслуживание и ремонт оборудования",3.3333333333333335]
[null,"Административные расходы",9.3166666666666662E-2]
[null,"Накладные",0.20483333333333334]
[null,"Прочие",0]
[null,"Транспортный налог",6.6666666666666671E-3]
[null,"Налог на имущество",0.93333333333333335]
[null,"Амортизация",6.5096666666666669]
[null,"Акциз долл/тонну",46.88]
[null,"Капитальные затраты ",145.82400000000001]
[null,"Налог на прибыль",0.28000000000000003]
[null,"Прочее "]
[null,"Ставка дисконт",0.15]
[null,"Курс доллара",60]
[null,"Инфляция",0.01]
[null,"(рубли)","(доллары)"]
[null,"(доллары)"]
[]
[]
[]
[]
[]
[]
[]
[]
[]
[]
[]
[]
[]
[]
[]
[]
[]
[]
[]
[]
[]
[]
[]
[]
[]
[]
[]
[]
[]
[]
[]
[]
[]
[]
[]
[]
[]
[]
[]
[]
[]
[]
[null," Анализ чувствительности        ДИАГРАММА    ТОРНАДО"]
[null,null,1.25,1,0.75]
[null,"Цена Дизельное топливо",4536226900.7101727,3791511023.2935719,3046795145.8769712]
[null,"Себестоимость 1т ",4010247023.2935719,3791511023.2935719,3572775023.2935719]
[null,"Капитальные затраты",4445834386.0056505,3791511023.2935719,3137187660.5814929]
[]
[]
[]
[]
[]
[]
[null,"Цена Дизельное топливо",4536226900.7101727,3791511023.2935719,3046795145.8769712]
[null,"Капитальные затраты",4445834386.0056505,3791511023.2935719,3137187660.5814929]
[null,"Себестоимость 1т ",4010247023.2935719,3791511023.2935719,3572775023.2935719]
[]
[]
[]
[]
[]
[]
[]
[]
[]
[]
[]
[]
[]
[]
[]
[]
[]
[]
[]
[]
[]
[]
[]
[]
[]
[]
[]
[]
[]
[]
[]
[]
[]
[]
[]
[]
[]
[]
[]
[]
[]
[]
[]
[]
[]
[]
[]
[]
[]
[]
[]
[]
[]
[]
[]
[]
[]
[]
[]
[]
[]
[]
[]
[]
[]
[]
[]
[]
[]
[]
[]
[]
[]
[]
[]
[]
[]
[]
[]
[]
[]
[]
[]
[]
[]
[]
[]
[]
[]
[]
[]
[]
[]
[]
[]
[]
[]
[]
[]
[]
[]
[]
[]
[]
[]
[]
[]
[]
[]
[]
[]
[]
[]
[]
[]
[]
[]
[]
[]
[]
[]
[]
[]
[]
[]
[]
[]
[]
[]
[]
[]
[]
[]
[]
[]
[]
[]
[]
[]
[]
[]
[]
[]
[]
[]
[]
[]
[]
[]
[]
[]
[]
[]
[]
[]
[]
[]
[]
[]
[]
[]
[]
[]
[]
[]
[]
[]
[]
[]
[]
[]
[]
[]
[]
[]
[]
[]
[null,null,null,null,null,null,null,null,null,null,null,null,null,"Добыча, ",null,null,null,null,null,"Весо-вая обвод-нен-ность,","Коэф-фициент нефте-извле-чения, доли ед.","Закачка воды,  м3",null,"Фонд скважин на конец периода",null,null,"Дебит, ",null,"Прие-мис-тость по воде, м3/сут"]
[null,null,null,null,null,null,null,null,null,null,null,null,null," тонн",null,null,null,null,null,null,null,null,null,null,null,null,"т/сут"]
[null,null,null,null,null,null,null,null,null,null,null,null,null,"нефти",null,"воды",null,"жидкости"]
[null,null,null,null,null,null,null,null,null,null,null,null,null,"теку-щая","накоп-лен-ная","текущая","накоплен-ная","текущая","накоп-лен-ная",null,null,"теку-щая","накоп-лен-ная","всего","добыва-ющих","нагне-татель-ных","нефти","жид-кости"]
[null,null,null,null,null,null,null,null,null,null,null,null,null,2,3,4,5,6,7,8,9,10,11,12,13,14,15,16,17]
[null,null,null,null,null,null,null,null,null,null,null,null,null,{"$f":"TRANSPOSE($C$148:$I$148)","v":0},{"$f":"TRANSPOSE($C$196:$I$196)","v":0},{"$f":"R646-N646","v":0},{"$f":"P646","v":0},{"$f":"TRANSPOSE($C$191:$I$191)","v":0},{"$f":"R646","v":0},{"$f":"TRANSPOSE($C$185:$I$185)","v":0},{"$f":"TRANSPOSE($C$197:$I$197)","v":0},{"$f":"TRANSPOSE($C$201:$I$201)","v":0},{"$f":"TRANSPOSE($C$202:$I$202)","v":0},{"$f":"SUM(Y646:Z646)","v":0},{"$f":"TRANSPOSE($C$172:$I$172)","v":0},{"$f":"TRANSPOSE($C$179:$I$179)","v":0},{"$f":"TRANSPOSE($C$188:$I$188)","v":0},{"$f":"TRANSPOSE($C$182:$I$182)","v":0},{"$f":"TRANSPOSE($C$190:$I$190)","v":0}]
[null,null,null,null,null,null,null,null,null,null,null,null,null,0,0,{"$f":"R647-N647","v":0},{"$f":"P647+Q646","v":0},0,{"$f":"R647+S646","v":0},0,0,0,0,{"$f":"SUM(Y647:Z647)","v":0},0,0,0,0,0]
[null,null,null,null,null,null,null,null,null,null,null,null,null,0,0,{"$f":"R648-N648","v":0},{"$f":"P648+Q647","v":0},0,0,0,0,0,0,0,0,0,0,0,0]
[null,null,null,null,null,null,null,null,null,null,null,null,null,0,0,0,0,0,0,0,0,0,0,0,0,0,0,0,0]
[null,null,null,null,null,null,null,null,null,null,null,null,null,0,0,0,0,0,0,0,0,0,0,0,0,0,0,0,0]
[null,null,null,null,null,null,null,null,null,null,null,null,null,0,0,0,0,0,0,0,0,0,0,0,0,0,0,0,0]
[null,null,null,null,null,null,null,null,null,null,null,null,null,0,0,0,0,0,0,0,0,0,0,0,0,0,0,0,0]
[null,null,null,null,null,null,null,null,null,null,null,null,null,{"$error":"#N/A"},{"$error":"#N/A"},{"$error":"#N/A"},{"$error":"#N/A"},{"$error":"#N/A"},{"$error":"#N/A"},{"$error":"#N/A"},{"$error":"#N/A"},{"$error":"#N/A"},{"$error":"#N/A"},{"$error":"#N/A"},{"$error":"#N/A"},{"$error":"#N/A"},{"$error":"#N/A"},{"$error":"#N/A"},{"$error":"#N/A"}]
[null,null,null,null,null,null,null,null,null,null,null,null,null,{"$error":"#N/A"},{"$error":"#N/A"},{"$error":"#N/A"},{"$error":"#N/A"},{"$error":"#N/A"},{"$error":"#N/A"},{"$error":"#N/A"},{"$error":"#N/A"},{"$error":"#N/A"},{"$error":"#N/A"},{"$error":"#N/A"},{"$error":"#N/A"},{"$error":"#N/A"},{"$error":"#N/A"},{"$error":"#N/A"},{"$error":"#N/A"}]
[null,null,null,null,null,null,null,null,null,null,null,null,null,{"$error":"#N/A"},{"$error":"#N/A"},{"$error":"#N/A"},{"$error":"#N/A"},{"$error":"#N/A"},{"$error":"#N/A"},{"$error":"#N/A"},{"$error":"#N/A"},{"$error":"#N/A"},{"$error":"#N/A"},{"$error":"#N/A"},{"$error":"#N/A"},{"$error":"#N/A"},{"$error":"#N/A"},{"$error":"#N/A"},{"$error":"#N/A"}]
[null,null,null,null,null,null,null,null,null,null,null,null,null,{"$error":"#N/A"},{"$error":"#N/A"},{"$error":"#N/A"},{"$error":"#N/A"},{"$error":"#N/A"},{"$error":"#N/A"},{"$error":"#N/A"},{"$error":"#N/A"},{"$error":"#N/A"},{"$error":"#N/A"},{"$error":"#N/A"},{"$error":"#N/A"},{"$error":"#N/A"},{"$error":"#N/A"},{"$error":"#N/A"},{"$error":"#N/A"}]
[null,null,null,null,null,null,null,null,null,null,null,null,null,{"$error":"#N/A"},{"$error":"#N/A"},{"$error":"#N/A"},{"$error":"#N/A"},{"$error":"#N/A"},{"$error":"#N/A"},{"$error":"#N/A"},{"$error":"#N/A"},{"$error":"#N/A"},{"$error":"#N/A"},{"$error":"#N/A"},{"$error":"#N/A"},{"$error":"#N/A"},{"$error":"#N/A"},{"$error":"#N/A"},{"$error":"#N/A"}]
[null,null,null,null,null,null,null,null,null,null,null,null,null,{"$error":"#N/A"},{"$error":"#N/A"},{"$error":"#N/A"},{"$error":"#N/A"},{"$error":"#N/A"},{"$error":"#N/A"},{"$error":"#N/A"},{"$error":"#N/A"},{"$error":"#N/A"},{"$error":"#N/A"},{"$error":"#N/A"},{"$error":"#N/A"},{"$error":"#N/A"},{"$error":"#N/A"},{"$error":"#N/A"},{"$error":"#N/A"}]
[null,null,null,null,null,null,null,null,null,null,null,null,null,{"$error":"#N/A"},{"$error":"#N/A"},{"$error":"#N/A"},{"$error":"#N/A"},{"$error":"#N/A"},{"$error":"#N/A"},{"$error":"#N/A"},{"$error":"#N/A"},{"$error":"#N/A"},{"$error":"#N/A"},{"$error":"#N/A"},{"$error":"#N/A"},{"$error":"#N/A"},{"$error":"#N/A"},{"$error":"#N/A"},{"$error":"#N/A"}]
[null,null,null,null,null,null,null,null,null,null,null,null,null,{"$error":"#N/A"},{"$error":"#N/A"},{"$error":"#N/A"},{"$error":"#N/A"},{"$error":"#N/A"},{"$error":"#N/A"},{"$error":"#N/A"},{"$error":"#N/A"},{"$error":"#N/A"},{"$error":"#N/A"},{"$error":"#N/A"},{"$error":"#N/A"},{"$error":"#N/A"},{"$error":"#N/A"},{"$error":"#N/A"},{"$error":"#N/A"}]
[null,null,null,null,null,null,null,null,null,null,null,null,null,{"$error":"#N/A"},{"$error":"#N/A"},{"$error":"#N/A"},{"$error":"#N/A"},{"$error":"#N/A"},{"$error":"#N/A"},{"$error":"#N/A"},{"$error":"#N/A"},{"$error":"#N/A"},{"$error":"#N/A"},{"$error":"#N/A"},{"$error":"#N/A"},{"$error":"#N/A"},{"$error":"#N/A"},{"$error":"#N/A"},{"$error":"#N/A"}]
[null,null,null,null,null,null,null,null,null,null,null,null,null,{"$error":"#N/A"},{"$error":"#N/A"},{"$error":"#N/A"},{"$error":"#N/A"},{"$error":"#N/A"},{"$error":"#N/A"},{"$error":"#N/A"},{"$error":"#N/A"},{"$error":"#N/A"},{"$error":"#N/A"},{"$error":"#N/A"},{"$error":"#N/A"},{"$error":"#N/A"},{"$error":"#N/A"},{"$error":"#N/A"},{"$error":"#N/A"}]
[null,null,null,null,null,null,null,null,null,null,null,null,null,{"$error":"#N/A"},{"$error":"#N/A"},{"$error":"#N/A"},{"$error":"#N/A"},{"$error":"#N/A"},{"$error":"#N/A"},{"$error":"#N/A"},{"$error":"#N/A"},{"$error":"#N/A"},{"$error":"#N/A"},{"$error":"#N/A"},{"$error":"#N/A"},{"$error":"#N/A"},{"$error":"#N/A"},{"$error":"#N/A"},{"$error":"#N/A"}]
[null,null,null,null,null,null,null,null,null,null,null,null,null,{"$error":"#N/A"},{"$error":"#N/A"},{"$error":"#N/A"},{"$f":"P664+Q663","v":{"$error":"#N/A"}},{"$error":"#N/A"},{"$error":"#N/A"},{"$error":"#N/A"},{"$error":"#N/A"},{"$error":"#N/A"},{"$error":"#N/A"},{"$error":"#N/A"},{"$error":"#N/A"},{"$error":"#N/A"},{"$error":"#N/A"},{"$error":"#N/A"},{"$error":"#N/A"}]
[null,null,null,null,null,null,null,null,null,null,null,null,null,{"$error":"#N/A"},{"$error":"#N/A"},{"$error":"#N/A"},{"$error":"#N/A"},{"$error":"#N/A"},{"$error":"#N/A"},{"$error":"#N/A"},{"$error":"#N/A"},{"$error":"#N/A"},{"$error":"#N/A"},{"$error":"#N/A"},{"$error":"#N/A"},{"$error":"#N/A"},{"$error":"#N/A"},{"$error":"#N/A"},{"$error":"#N/A"}]
[null,null,null,null,null,null,null,null,null,null,null,null,null,{"$error":"#N/A"},{"$error":"#N/A"},{"$error":"#N/A"},{"$error":"#N/A"},{"$error":"#N/A"},{"$error":"#N/A"},{"$error":"#N/A"},{"$error":"#N/A"},{"$error":"#N/A"},{"$error":"#N/A"},{"$error":"#N/A"},{"$error":"#N/A"},{"$error":"#N/A"},{"$error":"#N/A"},{"$error":"#N/A"},{"$error":"#N/A"}]
[null,null,null,null,null,null,null,null,null,null,null,null,null,{"$error":"#N/A"},{"$error":"#N/A"},{"$error":"#N/A"},{"$error":"#N/A"},{"$error":"#N/A"},{"$error":"#N/A"},{"$error":"#N/A"},{"$error":"#N/A"},{"$error":"#N/A"},{"$error":"#N/A"},{"$error":"#N/A"},{"$error":"#N/A"},{"$error":"#N/A"},{"$error":"#N/A"},{"$error":"#N/A"},{"$error":"#N/A"}]
[null,null,null,null,null,null,null,null,null,null,null,null,null,{"$error":"#N/A"},{"$error":"#N/A"},{"$error":"#N/A"},{"$error":"#N/A"},{"$error":"#N/A"},{"$error":"#N/A"},{"$error":"#N/A"},{"$error":"#N/A"},{"$error":"#N/A"},{"$error":"#N/A"},{"$error":"#N/A"},{"$error":"#N/A"},{"$error":"#N/A"},{"$error":"#N/A"},{"$error":"#N/A"},{"$error":"#N/A"}]
[null,null,null,null,null,null,null,null,null,null,null,null,null,{"$error":"#N/A"},{"$error":"#N/A"},{"$error":"#N/A"},{"$error":"#N/A"},{"$error":"#N/A"},{"$error":"#N/A"},{"$error":"#N/A"},{"$error":"#N/A"},{"$error":"#N/A"},{"$error":"#N/A"},{"$error":"#N/A"},{"$error":"#N/A"},{"$error":"#N/A"},{"$error":"#N/A"},{"$error":"#N/A"},{"$error":"#N/A"}]
[null,null,null,null,null,null,null,null,null,null,null,null,null,{"$error":"#N/A"},{"$error":"#N/A"},{"$error":"#N/A"},{"$error":"#N/A"},{"$error":"#N/A"},{"$error":"#N/A"},{"$error":"#N/A"},{"$error":"#N/A"},{"$error":"#N/A"},{"$error":"#N/A"},{"$error":"#N/A"},{"$error":"#N/A"},{"$error":"#N/A"},{"$error":"#N/A"},{"$error":"#N/A"},{"$error":"#N/A"}]
[null,null,null,null,null,null,null,null,null,null,null,null,null,{"$error":"#N/A"},{"$error":"#N/A"},{"$error":"#N/A"},{"$error":"#N/A"},{"$error":"#N/A"},{"$error":"#N/A"},{"$error":"#N/A"},{"$error":"#N/A"},{"$error":"#N/A"},{"$error":"#N/A"},{"$error":"#N/A"},{"$error":"#N/A"},{"$error":"#N/A"},{"$error":"#N/A"},{"$error":"#N/A"},{"$error":"#N/A"}]
[null,null,null,null,null,null,null,null,null,null,null,null,null,{"$error":"#N/A"},{"$error":"#N/A"},{"$error":"#N/A"},{"$error":"#N/A"},{"$error":"#N/A"},{"$error":"#N/A"},{"$error":"#N/A"},{"$error":"#N/A"},{"$error":"#N/A"},{"$error":"#N/A"},{"$error":"#N/A"},{"$error":"#N/A"},{"$error":"#N/A"},{"$error":"#N/A"},{"$error":"#N/A"},{"$error":"#N/A"}]
[null,null,null,null,null,null,null,null,null,null,null,null,null,{"$error":"#N/A"},{"$error":"#N/A"},{"$error":"#N/A"},{"$error":"#N/A"},{"$error":"#N/A"},{"$error":"#N/A"},{"$error":"#N/A"},{"$error":"#N/A"},{"$error":"#N/A"},{"$error":"#N/A"},{"$error":"#N/A"},{"$error":"#N/A"},{"$error":"#N/A"},{"$error":"#N/A"},{"$error":"#N/A"},{"$error":"#N/A"}]
[null,null,null,null,null,null,null,null,null,null,null,null,null,{"$error":"#N/A"},{"$error":"#N/A"},{"$error":"#N/A"},{"$error":"#N/A"},{"$error":"#N/A"},{"$error":"#N/A"},{"$error":"#N/A"},{"$error":"#N/A"},{"$error":"#N/A"},{"$error":"#N/A"},{"$error":"#N/A"},{"$error":"#N/A"},{"$error":"#N/A"},{"$error":"#N/A"},{"$error":"#N/A"},{"$error":"#N/A"}]
[null,null,null,null,null,null,null,null,null,null,null,null,null,{"$error":"#N/A"},{"$error":"#N/A"},{"$error":"#N/A"},{"$error":"#N/A"},{"$error":"#N/A"},{"$error":"#N/A"},{"$error":"#N/A"},{"$error":"#N/A"},{"$error":"#N/A"},{"$error":"#N/A"},{"$error":"#N/A"},{"$error":"#N/A"},{"$error":"#N/A"},{"$error":"#N/A"},{"$error":"#N/A"},{"$error":"#N/A"}]
[null,null,null,null,null,null,null,null,null,null,null,null,null,{"$error":"#N/A"},{"$error":"#N/A"},{"$error":"#N/A"},{"$error":"#N/A"},{"$error":"#N/A"},{"$error":"#N/A"},{"$error":"#N/A"},{"$error":"#N/A"},{"$error":"#N/A"},{"$error":"#N/A"},{"$error":"#N/A"},{"$error":"#N/A"},{"$error":"#N/A"},{"$error":"#N/A"},{"$error":"#N/A"},{"$error":"#N/A"}]
[null,null,null,null,null,null,null,null,null,null,null,null,null,{"$error":"#N/A"},{"$error":"#N/A"},{"$error":"#N/A"},{"$error":"#N/A"},{"$error":"#N/A"},{"$error":"#N/A"},{"$error":"#N/A"},{"$error":"#N/A"},{"$error":"#N/A"},{"$error":"#N/A"},{"$error":"#N/A"},{"$error":"#N/A"},{"$error":"#N/A"},{"$error":"#N/A"},{"$error":"#N/A"},{"$error":"#N/A"}]
[null,null,null,null,null,null,null,null,null,null,null,null,null,{"$error":"#N/A"},{"$error":"#N/A"},{"$error":"#N/A"},{"$error":"#N/A"},{"$error":"#N/A"},{"$error":"#N/A"},{"$error":"#N/A"},{"$error":"#N/A"},{"$error":"#N/A"},{"$error":"#N/A"},{"$error":"#N/A"},{"$error":"#N/A"},{"$error":"#N/A"},{"$error":"#N/A"},{"$error":"#N/A"},{"$error":"#N/A"}]
[null,null,null,null,null,null,null,null,null,null,null,null,null,{"$error":"#N/A"},{"$error":"#N/A"},{"$error":"#N/A"},{"$error":"#N/A"},{"$error":"#N/A"},{"$error":"#N/A"},{"$error":"#N/A"},{"$error":"#N/A"},{"$error":"#N/A"},{"$error":"#N/A"},{"$error":"#N/A"},{"$error":"#N/A"},{"$error":"#N/A"},{"$error":"#N/A"},{"$error":"#N/A"},{"$error":"#N/A"}]
[null,null,null,null,null,null,null,null,null,null,null,null,null,{"$error":"#N/A"},{"$error":"#N/A"},{"$error":"#N/A"},{"$f":"P680+Q679","v":{"$error":"#N/A"}},{"$error":"#N/A"},{"$error":"#N/A"},{"$error":"#N/A"},{"$error":"#N/A"},{"$error":"#N/A"},{"$error":"#N/A"},{"$error":"#N/A"},{"$error":"#N/A"},{"$error":"#N/A"},{"$error":"#N/A"},{"$error":"#N/A"},{"$error":"#N/A"}]
[null,null,null,null,null,null,null,null,null,null,null,null,null,{"$error":"#N/A"},{"$error":"#N/A"},{"$error":"#N/A"},{"$error":"#N/A"},{"$error":"#N/A"},{"$error":"#N/A"},{"$error":"#N/A"},{"$error":"#N/A"},{"$error":"#N/A"},{"$error":"#N/A"},{"$error":"#N/A"},{"$error":"#N/A"},{"$error":"#N/A"},{"$error":"#N/A"},{"$error":"#N/A"},{"$error":"#N/A"}]
[null,null,null,null,null,null,null,null,null,null,null,null,null,{"$error":"#N/A"},{"$error":"#N/A"},{"$error":"#N/A"},{"$error":"#N/A"},{"$error":"#N/A"},{"$error":"#N/A"},{"$error":"#N/A"},{"$error":"#N/A"},{"$error":"#N/A"},{"$error":"#N/A"},{"$error":"#N/A"},{"$error":"#N/A"},{"$error":"#N/A"},{"$error":"#N/A"},{"$error":"#N/A"},{"$error":"#N/A"}]
[null,null,null,null,null,null,null,null,null,null,null,null,null,{"$error":"#N/A"},{"$error":"#N/A"},{"$error":"#N/A"},{"$error":"#N/A"},{"$error":"#N/A"},{"$error":"#N/A"},{"$error":"#N/A"},{"$error":"#N/A"},{"$error":"#N/A"},{"$error":"#N/A"},{"$error":"#N/A"},{"$error":"#N/A"},{"$error":"#N/A"},{"$error":"#N/A"},{"$error":"#N/A"},{"$error":"#N/A"}]
[]
[]
[]
[]
[null,null,null,null,null,null,null,null,null,null,null,null,null,null,null,null,null,null,null,null,null,null,null,null,null,null,null,null,null,null,null,null,null,null,null,null,null,null,"Таблица 38 -Чистый доход недропользователя,  руб."]
[null,null,null,null,null,null,null,null,null,null,null,null,null,null,null,null,null,null,null,null,null,null,null,null,null,null,null,null,null,null,null,null,null,null,null,null,null,null,"Годы и периоды","Выручка от реализации продукции н+г без транс. и эксп. пошл.","Эксплуатационные затраты, налоги и отчисления (без аммор.)","Внереализационные расходы","Чистый результат","Амортиза-ционные отчисления","Поступление финансов","Капитальные вложения","Чистый доход (СF)",null,"Чистый дисконтированный доход (NPV)"]
[null,null,null,null,null,null,null,null,null,null,null,null,null,null,null,null,null,null,null,null,null,null,null,null,null,null,null,null,null,null,null,null,null,null,null,null,null,null,null,null,null,null,null,null,null,null,"годовой","накопленный","годовой","накопленный"]
[null,null,null,null,null,null,null,null,null,null,null,null,null,null,null,null,null,null,null,null,null,null,null,null,null,null,null,null,null,null,null,null,null,null,null,null,null,null,1,2,3,4,5,6,7,8,9,10,11,12]
[null,null,null,null,null,null,null,null,null,null,null,null,null,null,null,null,null,null,null,null,null,null,null,null,null,null,null,null,null,null,null,null,null,null,null,null,null,null,{"$f":"TRANSPOSE($C$147:$I$147)","v":0},{"$f":"TRANSPOSE($C$474:$I$474)","v":0},{"$f":"TRANSPOSE($C$480:$I$480)","v":0},null,{"$f":"TRANSPOSE($C$511:$I$511)","v":0},{"$f":"TRANSPOSE($C$485:$I$485)","v":0},{"$f":"AQ692+AR692","v":0},{"$f":"TRANSPOSE($C$525:$I$525)","v":0},{"$f":"TRANSPOSE($C$541:$I$541)","v":0},{"$f":"TRANSPOSE($C$542:$I$542)","v":0},{"$f":"TRANSPOSE($C$544:$I$544)","v":0},{"$f":"TRANSPOSE($C$545:$I$545)","v":0}]
[null,null,null,null,null,null,null,null,null,null,null,null,null,null,null,null,null,null,null,null,null,null,null,null,null,null,null,null,null,null,null,null,null,null,null,null,null,null,0,0,0,null,0,0,{"$f":"AQ693+AR693","v":0},0,0,0,0,0]
[null,null,null,null,null,null,null,null,null,null,null,null,null,null,null,null,null,null,null,null,null,null,null,null,null,null,null,null,null,null,null,null,null,null,null,null,null,null,0,0,0,null,0,0,0,0,0,0,0,0]
[null,null,null,null,null,null,null,null,null,null,null,null,null,null,null,null,null,null,null,null,null,null,null,null,null,null,null,null,null,null,null,null,null,null,null,null,null,null,0,0,0,null,0,0,0,0,0,0,0,0]
[null,null,null,null,null,null,null,null,null,null,null,null,null,null,null,null,null,null,null,null,null,null,null,null,null,null,null,null,null,null,null,null,null,null,null,null,null,null,0,0,0,null,0,0,0,0,0,0,0,0]
[null,null,null,null,null,null,null,null,null,null,null,null,null,null,null,null,null,null,null,null,null,null,null,null,null,null,null,null,null,null,null,null,null,null,null,null,null,null,0,0,0,null,0,0,0,0,0,0,0,0]
[null,null,null,null,null,null,null,null,null,null,null,null,null,null,null,null,null,null,null,null,null,null,null,null,null,null,null,null,null,null,null,null,null,null,null,null,null,null,0,0,0,null,0,0,0,0,0,0,0,0]
[null,null,null,null,null,null,null,null,null,null,null,null,null,null,null,null,null,null,null,null,null,null,null,null,null,null,null,null,null,null,null,null,null,null,null,null,null,null,{"$error":"#N/A"},{"$error":"#N/A"},{"$error":"#N/A"},null,{"$error":"#N/A"},{"$error":"#N/A"},{"$error":"#N/A"},{"$error":"#N/A"},{"$error":"#N/A"},{"$error":"#N/A"},{"$error":"#N/A"},{"$error":"#N/A"}]
[null,null,null,null,null,null,null,null,null,null,null,null,null,null,null,null,null,null,null,null,null,null,null,null,null,null,null,null,null,null,null,null,null,null,null,null,null,null,{"$error":"#N/A"},{"$error":"#N/A"},{"$error":"#N/A"},null,{"$error":"#N/A"},{"$error":"#N/A"},{"$error":"#N/A"},{"$error":"#N/A"},{"$error":"#N/A"},{"$error":"#N/A"},{"$error":"#N/A"},{"$error":"#N/A"}]
[null,null,null,null,null,null,null,null,null,null,null,null,null,null,null,null,null,null,null,null,null,null,null,null,null,null,null,null,null,null,null,null,null,null,null,null,null,null,{"$error":"#N/A"},{"$error":"#N/A"},{"$error":"#N/A"},null,{"$error":"#N/A"},{"$error":"#N/A"},{"$error":"#N/A"},{"$error":"#N/A"},{"$error":"#N/A"},{"$error":"#N/A"},{"$error":"#N/A"},{"$error":"#N/A"}]
[null,null,null,null,null,null,null,null,null,null,null,null,null,null,null,null,null,null,null,null,null,null,null,null,null,null,null,null,null,null,null,null,null,null,null,null,null,null,{"$error":"#N/A"},{"$error":"#N/A"},{"$error":"#N/A"},null,{"$error":"#N/A"},{"$error":"#N/A"},{"$error":"#N/A"},{"$error":"#N/A"},{"$error":"#N/A"},{"$error":"#N/A"},{"$error":"#N/A"},{"$error":"#N/A"}]
[null,null,null,null,null,null,null,null,null,null,null,null,null,null,null,null,null,null,null,null,null,null,null,null,null,null,null,null,null,null,null,null,null,null,null,null,null,null,{"$error":"#N/A"},{"$error":"#N/A"},{"$error":"#N/A"},null,{"$error":"#N/A"},{"$error":"#N/A"},{"$error":"#N/A"},{"$error":"#N/A"},{"$error":"#N/A"},{"$error":"#N/A"},{"$error":"#N/A"},{"$error":"#N/A"}]
[null,null,null,null,null,null,null,null,null,null,null,null,null,null,null,null,null,null,null,null,null,null,null,null,null,null,null,null,null,null,null,null,null,null,null,null,null,null,{"$error":"#N/A"},{"$error":"#N/A"},{"$error":"#N/A"},null,{"$error":"#N/A"},{"$error":"#N/A"},{"$error":"#N/A"},{"$error":"#N/A"},{"$error":"#N/A"},{"$error":"#N/A"},{"$error":"#N/A"},{"$error":"#N/A"}]
[null,null,null,null,null,null,null,null,null,null,null,null,null,null,null,null,null,null,null,null,null,null,null,null,null,null,null,null,null,null,null,null,null,null,null,null,null,null,{"$error":"#N/A"},{"$error":"#N/A"},{"$error":"#N/A"},null,{"$error":"#N/A"},{"$error":"#N/A"},{"$error":"#N/A"},{"$error":"#N/A"},{"$error":"#N/A"},{"$error":"#N/A"},{"$error":"#N/A"},{"$error":"#N/A"}]
[null,null,null,null,null,null,null,null,null,null,null,null,null,null,null,null,null,null,null,null,null,null,null,null,null,null,null,null,null,null,null,null,null,null,null,null,null,null,{"$error":"#N/A"},{"$error":"#N/A"},{"$error":"#N/A"},null,{"$error":"#N/A"},{"$error":"#N/A"},{"$error":"#N/A"},{"$error":"#N/A"},{"$error":"#N/A"},{"$error":"#N/A"},{"$error":"#N/A"},{"$error":"#N/A"}]
[null,null,null,null,null,null,null,null,null,null,null,null,null,null,null,null,null,null,null,null,null,null,null,null,null,null,null,null,null,null,null,null,null,null,null,null,null,null,{"$error":"#N/A"},{"$error":"#N/A"},{"$error":"#N/A"},null,{"$error":"#N/A"},{"$error":"#N/A"},{"$error":"#N/A"},{"$error":"#N/A"},{"$error":"#N/A"},{"$error":"#N/A"},{"$error":"#N/A"},{"$error":"#N/A"}]
[null,null,null,null,null,null,null,null,null,null,null,null,null,null,null,null,null,null,null,null,null,null,null,null,null,null,null,null,null,null,null,null,null,null,null,null,null,null,{"$error":"#N/A"},{"$error":"#N/A"},{"$error":"#N/A"},null,{"$error":"#N/A"},{"$error":"#N/A"},{"$error":"#N/A"},{"$error":"#N/A"},{"$error":"#N/A"},{"$error":"#N/A"},{"$error":"#N/A"},{"$error":"#N/A"}]
[null,null,null,null,null,null,null,null,null,null,null,null,null,null,null,null,null,null,null,null,null,null,null,null,null,null,null,null,null,null,null,null,null,null,null,null,null,null,{"$error":"#N/A"},{"$error":"#N/A"},{"$error":"#N/A"},null,{"$error":"#N/A"},{"$error":"#N/A"},{"$error":"#N/A"},{"$error":"#N/A"},{"$error":"#N/A"},{"$error":"#N/A"},{"$error":"#N/A"},{"$error":"#N/A"}]
[null,null,null,null,null,null,null,null,null,null,null,null,null,null,null,null,null,null,null,null,null,null,null,null,null,null,null,null,null,null,null,null,null,null,null,null,null,null,{"$error":"#N/A"},{"$error":"#N/A"},{"$error":"#N/A"},null,{"$error":"#N/A"},{"$error":"#N/A"},{"$error":"#N/A"},{"$error":"#N/A"},{"$error":"#N/A"},{"$error":"#N/A"},{"$error":"#N/A"},{"$error":"#N/A"}]
[null,null,null,null,null,null,null,null,null,null,null,null,null,null,null,null,null,null,null,null,null,null,null,null,null,null,null,null,null,null,null,null,null,null,null,null,null,null,{"$error":"#N/A"},{"$error":"#N/A"},{"$error":"#N/A"},null,{"$error":"#N/A"},{"$error":"#N/A"},{"$error":"#N/A"},{"$error":"#N/A"},{"$error":"#N/A"},{"$error":"#N/A"},{"$error":"#N/A"},{"$error":"#N/A"}]
[null,null,null,null,null,null,null,null,null,null,null,null,null,null,null,null,null,null,null,null,null,null,null,null,null,null,null,null,null,null,null,null,null,null,null,null,null,null,{"$error":"#N/A"},{"$error":"#N/A"},{"$error":"#N/A"},null,{"$error":"#N/A"},{"$error":"#N/A"},{"$error":"#N/A"},{"$error":"#N/A"},{"$error":"#N/A"},{"$error":"#N/A"},{"$error":"#N/A"},{"$error":"#N/A"}]
[null,null,null,null,null,null,null,null,null,null,null,null,null,null,null,null,null,null,null,null,null,null,null,null,null,null,null,null,null,null,null,null,null,null,null,null,null,null,{"$error":"#N/A"},{"$error":"#N/A"},{"$error":"#N/A"},null,{"$error":"#N/A"},{"$error":"#N/A"},{"$error":"#N/A"},{"$error":"#N/A"},{"$error":"#N/A"},{"$error":"#N/A"},{"$error":"#N/A"},{"$error":"#N/A"}]
[null,null,null,null,null,null,null,null,null,null,null,null,null,null,null,null,null,null,null,null,null,null,null,null,null,null,null,null,null,null,null,null,null,null,null,null,null,null,{"$error":"#N/A"},{"$error":"#N/A"},{"$error":"#N/A"},null,{"$error":"#N/A"},{"$error":"#N/A"},{"$error":"#N/A"},{"$error":"#N/A"},{"$error":"#N/A"},{"$error":"#N/A"},{"$error":"#N/A"},{"$error":"#N/A"}]
[null,null,null,null,null,null,null,null,null,null,null,null,null,null,null,null,null,null,null,null,null,null,null,null,null,null,null,null,null,null,null,null,null,null,null,null,null,null,{"$error":"#N/A"},{"$error":"#N/A"},{"$error":"#N/A"},null,{"$error":"#N/A"},{"$error":"#N/A"},{"$error":"#N/A"},{"$error":"#N/A"},{"$error":"#N/A"},{"$error":"#N/A"},{"$error":"#N/A"},{"$error":"#N/A"}]
[null,null,null,null,null,null,null,null,null,null,null,null,null,null,null,null,null,null,null,null,null,null,null,null,null,null,null,null,null,null,null,null,null,null,null,null,null,null,{"$error":"#N/A"},{"$error":"#N/A"},{"$error":"#N/A"},null,{"$error":"#N/A"},{"$error":"#N/A"},{"$error":"#N/A"},{"$error":"#N/A"},{"$error":"#N/A"},{"$error":"#N/A"},{"$error":"#N/A"},{"$error":"#N/A"}]
[null,null,null,null,null,null,null,null,null,null,null,null,null,null,null,null,null,null,null,null,null,null,null,null,null,null,null,null,null,null,null,null,null,null,null,null,null,null,{"$error":"#N/A"},{"$error":"#N/A"},{"$error":"#N/A"},null,{"$error":"#N/A"},{"$error":"#N/A"},{"$error":"#N/A"},{"$error":"#N/A"},{"$error":"#N/A"},{"$error":"#N/A"},{"$error":"#N/A"},{"$error":"#N/A"}]
[null,null,null,null,null,null,null,null,null,null,null,null,null,null,null,null,null,null,null,null,null,null,null,null,null,null,null,null,null,null,null,null,null,null,null,null,null,null,{"$error":"#N/A"},{"$error":"#N/A"},{"$error":"#N/A"},null,{"$error":"#N/A"},{"$error":"#N/A"},{"$error":"#N/A"},{"$error":"#N/A"},{"$error":"#N/A"},{"$error":"#N/A"},{"$error":"#N/A"},{"$error":"#N/A"}]
[null,null,null,null,null,null,null,null,null,null,null,null,null,null,null,null,null,null,null,null,null,null,null,null,null,null,null,null,null,null,null,null,null,null,null,null,null,null,{"$error":"#N/A"},{"$error":"#N/A"},{"$error":"#N/A"},null,{"$error":"#N/A"},{"$error":"#N/A"},{"$error":"#N/A"},{"$error":"#N/A"},{"$error":"#N/A"},{"$error":"#N/A"},{"$error":"#N/A"},{"$error":"#N/A"}]
[null,null,null,null,null,null,null,null,null,null,null,null,null,null,null,null,null,null,null,null,null,null,null,null,null,null,null,null,null,null,null,null,null,null,null,null,null,null,{"$error":"#N/A"},{"$error":"#N/A"},{"$error":"#N/A"},null,{"$error":"#N/A"},{"$error":"#N/A"},{"$error":"#N/A"},{"$error":"#N/A"},{"$error":"#N/A"},{"$error":"#N/A"},{"$error":"#N/A"},{"$error":"#N/A"}]
[null,null,null,null,null,null,null,null,null,null,null,null,null,null,null,null,null,null,null,null,null,null,null,null,null,null,null,null,null,null,null,null,null,null,null,null,null,null,{"$error":"#N/A"},{"$error":"#N/A"},{"$error":"#N/A"},null,{"$error":"#N/A"},{"$error":"#N/A"},{"$error":"#N/A"},{"$error":"#N/A"},{"$error":"#N/A"},{"$error":"#N/A"},{"$error":"#N/A"},{"$error":"#N/A"}]
[null,null,null,null,null,null,null,null,null,null,null,null,null,null,null,null,null,null,null,null,null,null,null,null,null,null,null,null,null,null,null,null,null,null,null,null,null,null,{"$error":"#N/A"},{"$error":"#N/A"},{"$error":"#N/A"},null,{"$error":"#N/A"},{"$error":"#N/A"},{"$error":"#N/A"},{"$error":"#N/A"},{"$error":"#N/A"},{"$error":"#N/A"},{"$error":"#N/A"},{"$error":"#N/A"}]
[null,null,null,null,null,null,null,null,null,null,null,null,null,null,null,null,null,null,null,null,null,null,null,null,null,null,null,null,null,null,null,null,null,null,null,null,null,null,{"$error":"#N/A"},{"$error":"#N/A"},{"$error":"#N/A"},null,{"$error":"#N/A"},{"$error":"#N/A"},{"$error":"#N/A"},{"$error":"#N/A"},{"$error":"#N/A"},{"$error":"#N/A"},{"$error":"#N/A"},{"$error":"#N/A"}]
[null,null,null,null,null,null,null,null,null,null,null,null,null,null,null,null,null,null,null,null,null,null,null,null,null,null,null,null,null,null,null,null,null,null,null,null,null,null,{"$error":"#N/A"},{"$error":"#N/A"},{"$error":"#N/A"},null,{"$error":"#N/A"},{"$error":"#N/A"},{"$error":"#N/A"},{"$error":"#N/A"},{"$error":"#N/A"},{"$error":"#N/A"},{"$error":"#N/A"},{"$error":"#N/A"}]
[null,null,null,null,null,null,null,null,null,null,null,null,null,null,null,null,null,null,null,null,null,null,null,null,null,null,null,null,null,null,null,null,null,null,null,null,null,null,{"$error":"#N/A"},{"$error":"#N/A"},{"$error":"#N/A"},null,{"$error":"#N/A"},{"$error":"#N/A"},{"$error":"#N/A"},{"$error":"#N/A"},{"$error":"#N/A"},{"$error":"#N/A"},{"$error":"#N/A"},{"$error":"#N/A"}]
[null,null,null,null,null,null,null,null,null,null,null,null,null,null,null,null,null,null,null,null,null,null,null,null,null,null,null,null,null,null,null,null,null,null,null,null,null,null,{"$error":"#N/A"},{"$error":"#N/A"},{"$error":"#N/A"},null,{"$error":"#N/A"},{"$error":"#N/A"},{"$error":"#N/A"},{"$error":"#N/A"},{"$error":"#N/A"},{"$error":"#N/A"},{"$error":"#N/A"},{"$error":"#N/A"}]
[null,null,null,null,null,null,null,null,null,null,null,null,null,null,null,null,null,null,null,null,null,null,null,null,null,null,null,null,null,null,null,null,null,null,null,null,null,null,{"$error":"#N/A"},{"$error":"#N/A"},{"$error":"#N/A"},null,{"$error":"#N/A"},{"$error":"#N/A"},{"$error":"#N/A"},{"$error":"#N/A"},{"$error":"#N/A"},{"$error":"#N/A"},{"$error":"#N/A"},{"$error":"#N/A"}]
[null,null,null,null,null,null,null,null,null,null,null,null,null,null,null,null,null,null,null,null,null,null,null,null,null,null,null,null,null,null,null,null,null,null,null,null,null,null,{"$error":"#N/A"},{"$error":"#N/A"},{"$error":"#N/A"},null,{"$error":"#N/A"},{"$error":"#N/A"},{"$error":"#N/A"},{"$error":"#N/A"},{"$error":"#N/A"},{"$error":"#N/A"},{"$error":"#N/A"},{"$error":"#N/A"}]
[null,null,null,null,null,null,null,null,null,null,null,null,null,null,null,null,null,null,null,null,null,null,null,null,null,null,null,null,null,null,null,null,null,null,null,null,null,null,{"$error":"#N/A"},{"$error":"#N/A"},{"$error":"#N/A"},null,{"$error":"#N/A"},{"$error":"#N/A"},{"$error":"#N/A"},{"$error":"#N/A"},{"$error":"#N/A"},{"$error":"#N/A"},{"$error":"#N/A"},{"$error":"#N/A"}]
[]
[]
[]
[]
[]
[]
[]
[null,null,null,null,null,null,null,null,null,null,null,null,null,null,null,null,null,null,null,null,null,null,null,null,null,null,null,null,null,null,null,null,null,null,null,null,null,null,"Таблица 39 -Чистый доход недропользователя (с учетом кредита)  руб."]
[null,null,null,null,null,null,null,null,null,null,null,null,null,null,null,null,null,null,null,null,null,null,null,null,null,null,null,null,null,null,null,null,null,null,null,null,null,null,"Годы и периоды","Выручка от реализации продукции ","Эксплуатационные затраты, налоги и отчисления","Внереализационные расходы","Чистый результат","Амортизационные отчисления","Поступление кредита","Поступление финансов","Капитальные вложения","Выплата кредита (основного долга +проценты)","Чистый доход (CF)"]
[null,null,null,null,null,null,null,null,null,null,null,null,null,null,null,null,null,null,null,null,null,null,null,null,null,null,null,null,null,null,null,null,null,null,null,null,null,null,null,null,null,null,null,null,null,null,null,null,"годовой","накопленный"]
[null,null,null,null,null,null,null,null,null,null,null,null,null,null,null,null,null,null,null,null,null,null,null,null,null,null,null,null,null,null,null,null,null,null,null,null,null,null,1,2,3,4,5,6,7,8,9,10,11,12]
[null,null,null,null,null,null,null,null,null,null,null,null,null,null,null,null,null,null,null,null,null,null,null,null,null,null,null,null,null,null,null,null,null,null,null,null,null,null,{"$f":"TRANSPOSE($C$147:$I$147)","v":0},{"$f":"TRANSPOSE($C$474:$I$474)","v":0},{"$f":"TRANSPOSE($C$480:$I$480)","v":0},null,{"$f":"TRANSPOSE($C$511:$I$511)","v":0},{"$f":"TRANSPOSE($C$485:$I$485)","v":0},{"$f":"TRANSPOSE($C$549:$I$549)","v":0},{"$f":"AR741+AS741","v":0},{"$f":"TRANSPOSE($C$525:$I$525)","v":0},{"$f":"TRANSPOSE($C$550:$I$550)","v":0},{"$f":"TRANSPOSE($C$551:$I$551)","v":0},{"$f":"AW741","v":0}]
[null,null,null,null,null,null,null,null,null,null,null,null,null,null,null,null,null,null,null,null,null,null,null,null,null,null,null,null,null,null,null,null,null,null,null,null,null,null,0,0,0,null,0,0,0,{"$f":"AR742+AS742","v":0},0,0,0,{"$f":"AX741+AW742","v":0}]
[null,null,null,null,null,null,null,null,null,null,null,null,null,null,null,null,null,null,null,null,null,null,null,null,null,null,null,null,null,null,null,null,null,null,null,null,null,null,0,0,0,null,0,0,0,0,0,0,0,{"$f":"AX742+AW743","v":0}]
[null,null,null,null,null,null,null,null,null,null,null,null,null,null,null,null,null,null,null,null,null,null,null,null,null,null,null,null,null,null,null,null,null,null,null,null,null,null,0,0,0,null,0,0,0,0,0,0,0,0]
[null,null,null,null,null,null,null,null,null,null,null,null,null,null,null,null,null,null,null,null,null,null,null,null,null,null,null,null,null,null,null,null,null,null,null,null,null,null,0,0,0,null,0,0,0,0,0,0,0,0]
[null,null,null,null,null,null,null,null,null,null,null,null,null,null,null,null,null,null,null,null,null,null,null,null,null,null,null,null,null,null,null,null,null,null,null,null,null,null,0,0,0,null,0,0,0,0,0,0,0,0]
[null,null,null,null,null,null,null,null,null,null,null,null,null,null,null,null,null,null,null,null,null,null,null,null,null,null,null,null,null,null,null,null,null,null,null,null,null,null,0,0,0,null,0,0,0,0,0,0,0,0]
[null,null,null,null,null,null,null,null,null,null,null,null,null,null,null,null,null,null,null,null,null,null,null,null,null,null,null,null,null,null,null,null,null,null,null,null,null,null,{"$error":"#N/A"},{"$error":"#N/A"},{"$error":"#N/A"},null,{"$error":"#N/A"},{"$error":"#N/A"},{"$error":"#N/A"},{"$error":"#N/A"},{"$error":"#N/A"},{"$error":"#N/A"},{"$error":"#N/A"},{"$error":"#N/A"}]
[null,null,null,null,null,null,null,null,null,null,null,null,null,null,null,null,null,null,null,null,null,null,null,null,null,null,null,null,null,null,null,null,null,null,null,null,null,null,{"$error":"#N/A"},{"$error":"#N/A"},{"$error":"#N/A"},null,{"$error":"#N/A"},{"$error":"#N/A"},{"$error":"#N/A"},{"$error":"#N/A"},{"$error":"#N/A"},{"$error":"#N/A"},{"$error":"#N/A"},{"$error":"#N/A"}]
[null,null,null,null,null,null,null,null,null,null,null,null,null,null,null,null,null,null,null,null,null,null,null,null,null,null,null,null,null,null,null,null,null,null,null,null,null,null,{"$error":"#N/A"},{"$error":"#N/A"},{"$error":"#N/A"},null,{"$error":"#N/A"},{"$error":"#N/A"},{"$error":"#N/A"},{"$error":"#N/A"},{"$error":"#N/A"},{"$error":"#N/A"},{"$error":"#N/A"},{"$error":"#N/A"}]
[null,null,null,null,null,null,null,null,null,null,null,null,null,null,null,null,null,null,null,null,null,null,null,null,null,null,null,null,null,null,null,null,null,null,null,null,null,null,{"$error":"#N/A"},{"$error":"#N/A"},{"$error":"#N/A"},null,{"$error":"#N/A"},{"$error":"#N/A"},{"$error":"#N/A"},{"$error":"#N/A"},{"$error":"#N/A"},{"$error":"#N/A"},{"$error":"#N/A"},{"$error":"#N/A"}]
[null,null,null,null,null,null,null,null,null,null,null,null,null,null,null,null,null,null,null,null,null,null,null,null,null,null,null,null,null,null,null,null,null,null,null,null,null,null,{"$error":"#N/A"},{"$error":"#N/A"},{"$error":"#N/A"},null,{"$error":"#N/A"},{"$error":"#N/A"},{"$error":"#N/A"},{"$error":"#N/A"},{"$error":"#N/A"},{"$error":"#N/A"},{"$error":"#N/A"},{"$error":"#N/A"}]
[null,null,null,null,null,null,null,null,null,null,null,null,null,null,null,null,null,null,null,null,null,null,null,null,null,null,null,null,null,null,null,null,null,null,null,null,null,null,{"$error":"#N/A"},{"$error":"#N/A"},{"$error":"#N/A"},null,{"$error":"#N/A"},{"$error":"#N/A"},{"$error":"#N/A"},{"$error":"#N/A"},{"$error":"#N/A"},{"$error":"#N/A"},{"$error":"#N/A"},{"$error":"#N/A"}]
[null,null,null,null,null,null,null,null,null,null,null,null,null,null,null,null,null,null,null,null,null,null,null,null,null,null,null,null,null,null,null,null,null,null,null,null,null,null,{"$error":"#N/A"},{"$error":"#N/A"},{"$error":"#N/A"},null,{"$error":"#N/A"},{"$error":"#N/A"},{"$error":"#N/A"},{"$error":"#N/A"},{"$error":"#N/A"},{"$error":"#N/A"},{"$error":"#N/A"},{"$error":"#N/A"}]
[null,null,null,null,null,null,null,null,null,null,null,null,null,null,null,null,null,null,null,null,null,null,null,null,null,null,null,null,null,null,null,null,null,null,null,null,null,null,{"$error":"#N/A"},{"$error":"#N/A"},{"$error":"#N/A"},null,{"$error":"#N/A"},{"$error":"#N/A"},{"$error":"#N/A"},{"$error":"#N/A"},{"$error":"#N/A"},{"$error":"#N/A"},{"$error":"#N/A"},{"$error":"#N/A"}]
[null,null,null,null,null,null,null,null,null,null,null,null,null,null,null,null,null,null,null,null,null,null,null,null,null,null,null,null,null,null,null,null,null,null,null,null,null,null,{"$error":"#N/A"},{"$error":"#N/A"},{"$error":"#N/A"},null,{"$error":"#N/A"},{"$error":"#N/A"},{"$error":"#N/A"},{"$error":"#N/A"},{"$error":"#N/A"},{"$error":"#N/A"},{"$error":"#N/A"},{"$error":"#N/A"}]
[null,null,null,null,null,null,null,null,null,null,null,null,null,null,null,null,null,null,null,null,null,null,null,null,null,null,null,null,null,null,null,null,null,null,null,null,null,null,{"$error":"#N/A"},{"$error":"#N/A"},{"$error":"#N/A"},null,{"$error":"#N/A"},{"$error":"#N/A"},{"$error":"#N/A"},{"$error":"#N/A"},{"$error":"#N/A"},{"$error":"#N/A"},{"$error":"#N/A"},{"$error":"#N/A"}]
[null,null,null,null,null,null,null,null,null,null,null,null,null,null,null,null,null,null,null,null,null,null,null,null,null,null,null,null,null,null,null,null,null,null,null,null,null,null,{"$error":"#N/A"},{"$error":"#N/A"},{"$error":"#N/A"},null,{"$error":"#N/A"},{"$error":"#N/A"},{"$error":"#N/A"},{"$error":"#N/A"},{"$error":"#N/A"},{"$error":"#N/A"},{"$error":"#N/A"},{"$error":"#N/A"}]
[null,null,null,null,null,null,null,null,null,null,null,null,null,null,null,null,null,null,null,null,null,null,null,null,null,null,null,null,null,null,null,null,null,null,null,null,null,null,{"$error":"#N/A"},{"$error":"#N/A"},{"$error":"#N/A"},null,{"$error":"#N/A"},{"$error":"#N/A"},{"$error":"#N/A"},{"$error":"#N/A"},{"$error":"#N/A"},{"$error":"#N/A"},{"$error":"#N/A"},{"$error":"#N/A"}]
[null,null,null,null,null,null,null,null,null,null,null,null,null,null,null,null,null,null,null,null,null,null,null,null,null,null,null,null,null,null,null,null,null,null,null,null,null,null,{"$error":"#N/A"},{"$error":"#N/A"},{"$error":"#N/A"},null,{"$error":"#N/A"},{"$error":"#N/A"},{"$error":"#N/A"},{"$error":"#N/A"},{"$error":"#N/A"},{"$error":"#N/A"},{"$error":"#N/A"},{"$error":"#N/A"}]
[null,null,null,null,null,null,null,null,null,null,null,null,null,null,null,null,null,null,null,null,null,null,null,null,null,null,null,null,null,null,null,null,null,null,null,null,null,null,{"$error":"#N/A"},{"$error":"#N/A"},{"$error":"#N/A"},null,{"$error":"#N/A"},{"$error":"#N/A"},{"$error":"#N/A"},{"$error":"#N/A"},{"$error":"#N/A"},{"$error":"#N/A"},{"$error":"#N/A"},{"$error":"#N/A"}]
[null,null,null,null,null,null,null,null,null,null,null,null,null,null,null,null,null,null,null,null,null,null,null,null,null,null,null,null,null,null,null,null,null,null,null,null,null,null,{"$error":"#N/A"},{"$error":"#N/A"},{"$error":"#N/A"},null,{"$error":"#N/A"},{"$error":"#N/A"},{"$error":"#N/A"},{"$error":"#N/A"},{"$error":"#N/A"},{"$error":"#N/A"},{"$error":"#N/A"},{"$error":"#N/A"}]
[null,null,null,null,null,null,null,null,null,null,null,null,null,null,null,null,null,null,null,null,null,null,null,null,null,null,null,null,null,null,null,null,null,null,null,null,null,null,{"$error":"#N/A"},{"$error":"#N/A"},{"$error":"#N/A"},null,{"$error":"#N/A"},{"$error":"#N/A"},{"$error":"#N/A"},{"$error":"#N/A"},{"$error":"#N/A"},{"$error":"#N/A"},{"$error":"#N/A"},{"$error":"#N/A"}]
[null,null,null,null,null,null,null,null,null,null,null,null,null,null,null,null,null,null,null,null,null,null,null,null,null,null,null,null,null,null,null,null,null,null,null,null,null,null,{"$error":"#N/A"},{"$error":"#N/A"},{"$error":"#N/A"},null,{"$error":"#N/A"},{"$error":"#N/A"},{"$error":"#N/A"},{"$error":"#N/A"},{"$error":"#N/A"},{"$error":"#N/A"},{"$error":"#N/A"},{"$error":"#N/A"}]
[null,null,null,null,null,null,null,null,null,null,null,null,null,null,null,null,null,null,null,null,null,null,null,null,null,null,null,null,null,null,null,null,null,null,null,null,null,null,{"$error":"#N/A"},{"$error":"#N/A"},{"$error":"#N/A"},null,{"$error":"#N/A"},{"$error":"#N/A"},{"$error":"#N/A"},{"$error":"#N/A"},{"$error":"#N/A"},{"$error":"#N/A"},{"$error":"#N/A"},{"$error":"#N/A"}]
[null,null,null,null,null,null,null,null,null,null,null,null,null,null,null,null,null,null,null,null,null,null,null,null,null,null,null,null,null,null,null,null,null,null,null,null,null,null,{"$error":"#N/A"},{"$error":"#N/A"},{"$error":"#N/A"},null,{"$error":"#N/A"},{"$error":"#N/A"},{"$error":"#N/A"},{"$error":"#N/A"},{"$error":"#N/A"},{"$error":"#N/A"},{"$error":"#N/A"},{"$error":"#N/A"}]
[null,null,null,null,null,null,null,null,null,null,null,null,null,null,null,null,null,null,null,null,null,null,null,null,null,null,null,null,null,null,null,null,null,null,null,null,null,null,{"$error":"#N/A"},{"$error":"#N/A"},{"$error":"#N/A"},null,{"$error":"#N/A"},{"$error":"#N/A"},{"$error":"#N/A"},{"$error":"#N/A"},{"$error":"#N/A"},{"$error":"#N/A"},{"$error":"#N/A"},{"$error":"#N/A"}]
[null,null,null,null,null,null,null,null,null,null,null,null,null,null,null,null,null,null,null,null,null,null,null,null,null,null,null,null,null,null,null,null,null,null,null,null,null,null,{"$error":"#N/A"},{"$error":"#N/A"},{"$error":"#N/A"},null,{"$error":"#N/A"},{"$error":"#N/A"},{"$error":"#N/A"},{"$error":"#N/A"},{"$error":"#N/A"},{"$error":"#N/A"},{"$error":"#N/A"},{"$error":"#N/A"}]
[null,null,null,null,null,null,null,null,null,null,null,null,null,null,null,null,null,null,null,null,null,null,null,null,null,null,null,null,null,null,null,null,null,null,null,null,null,null,{"$error":"#N/A"},{"$error":"#N/A"},{"$error":"#N/A"},null,{"$error":"#N/A"},{"$error":"#N/A"},{"$error":"#N/A"},{"$error":"#N/A"},{"$error":"#N/A"},{"$error":"#N/A"},{"$error":"#N/A"},{"$error":"#N/A"}]
[null,null,null,null,null,null,null,null,null,null,null,null,null,null,null,null,null,null,null,null,null,null,null,null,null,null,null,null,null,null,null,null,null,null,null,null,null,null,{"$error":"#N/A"},{"$error":"#N/A"},{"$error":"#N/A"},null,{"$error":"#N/A"},{"$error":"#N/A"},{"$error":"#N/A"},{"$error":"#N/A"},{"$error":"#N/A"},{"$error":"#N/A"},{"$error":"#N/A"},{"$error":"#N/A"}]
[null,null,null,null,null,null,null,null,null,null,null,null,null,null,null,null,null,null,null,null,null,null,null,null,null,null,null,null,null,null,null,null,null,null,null,null,null,null,{"$error":"#N/A"},{"$error":"#N/A"},{"$error":"#N/A"},null,{"$error":"#N/A"},{"$error":"#N/A"},{"$error":"#N/A"},{"$error":"#N/A"},{"$error":"#N/A"},{"$error":"#N/A"},{"$error":"#N/A"},{"$error":"#N/A"}]
[null,null,null,null,null,null,null,null,null,null,null,null,null,null,null,null,null,null,null,null,null,null,null,null,null,null,null,null,null,null,null,null,null,null,null,null,null,null,{"$error":"#N/A"},{"$error":"#N/A"},{"$error":"#N/A"},null,{"$error":"#N/A"},{"$error":"#N/A"},{"$error":"#N/A"},{"$error":"#N/A"},{"$error":"#N/A"},{"$error":"#N/A"},{"$error":"#N/A"},{"$error":"#N/A"}]
[null,null,null,null,null,null,null,null,null,null,null,null,null,null,null,null,null,null,null,null,null,null,null,null,null,null,null,null,null,null,null,null,null,null,null,null,null,null,{"$error":"#N/A"},{"$error":"#N/A"},{"$error":"#N/A"},null,{"$error":"#N/A"},{"$error":"#N/A"},{"$error":"#N/A"},{"$error":"#N/A"},{"$error":"#N/A"},{"$error":"#N/A"},{"$error":"#N/A"},{"$error":"#N/A"}]
[null,null,null,null,null,null,null,null,null,null,null,null,null,null,null,null,null,null,null,null,null,null,null,null,null,null,null,null,null,null,null,null,null,null,null,null,null,null,{"$error":"#N/A"},{"$error":"#N/A"},{"$error":"#N/A"},null,{"$error":"#N/A"},{"$error":"#N/A"},{"$error":"#N/A"},{"$error":"#N/A"},{"$error":"#N/A"},{"$error":"#N/A"},{"$error":"#N/A"},{"$error":"#N/A"}]
[null,null,null,null,null,null,null,null,null,null,null,null,null,null,null,null,null,null,null,null,null,null,null,null,null,null,null,null,null,null,null,null,null,null,null,null,null,null,{"$error":"#N/A"},{"$error":"#N/A"},{"$error":"#N/A"},null,{"$error":"#N/A"},{"$error":"#N/A"},{"$error":"#N/A"},{"$error":"#N/A"},{"$error":"#N/A"},{"$error":"#N/A"},{"$error":"#N/A"},{"$error":"#N/A"}]
[null,null,null,null,null,null,null,null,null,null,null,null,null,null,null,null,null,null,null,null,null,null,null,null,null,null,null,null,null,null,null,null,null,null,null,null,null,null,{"$error":"#N/A"},{"$error":"#N/A"},{"$error":"#N/A"},null,{"$error":"#N/A"},{"$error":"#N/A"},{"$error":"#N/A"},{"$error":"#N/A"},{"$error":"#N/A"},{"$error":"#N/A"},{"$error":"#N/A"},{"$error":"#N/A"}]
[null,null,null,null,null,null,null,null,null,null,null,null,null,null,null,null,null,null,null,null,null,null,null,null,null,null,null,null,null,null,null,null,null,null,null,null,null,null,{"$error":"#N/A"},{"$error":"#N/A"},{"$error":"#N/A"},null,{"$error":"#N/A"},{"$error":"#N/A"},{"$error":"#N/A"},{"$error":"#N/A"},{"$error":"#N/A"},{"$error":"#N/A"},{"$error":"#N/A"},{"$error":"#N/A"}]
[null,null,null,null,null,null,null,null,null,null,null,null,null,null,null,null,null,null,null,null,null,null,null,null,null,null,null,null,null,null,null,null,null,null,null,null,null,null,{"$error":"#N/A"},{"$error":"#N/A"},{"$error":"#N/A"},null,{"$error":"#N/A"},{"$error":"#N/A"},{"$error":"#N/A"},{"$error":"#N/A"},{"$error":"#N/A"},{"$error":"#N/A"},{"$error":"#N/A"},{"$error":"#N/A"}]

{"sheet":"00","index":2,"n_rows":0,"n_cols":0,"rows_kept":0,"cut":false,"hidden":true,"merged":[]}

{"sheet":"Лист1","index":3,"n_rows":1,"n_cols":2,"rows_kept":1,"cut":false,"hidden":false,"merged":[]}
[null,"https://strategy24.ru/66/projects/project/view?slug=biznes-plan-neftepererabatyvayushchego-zavoda-ooo-npz-sos-va&category=business"]